Cogmind - Beta 17 @@@ ROGUE MODE // 2026.07.24 @ 21:32:42 Player: Momo Result: Destroyed by Y-54 Guardian with Flak Gun Performance ------------- Evolutions (4) 2000 Regions Visited (9) 1800 Robots Destroyed (99) 495 Value Destroyed (3810) 3810 Prototype IDs (34) 680 Alien Tech Used (0) 0 Bonus (3140) 3140 TOTAL SCORE: 11925 Bonus ------- High Alert Combat Kills 133 Follower Combat Kills 1310 Registered with UFD 300 Met Optimus in HQ 500 Built Enhanced Grunts 300 A7 Reached Mainframe 300 Met R17 at Cetus 500 Friendly Fire -203 Cogmind --------- Core Integrity 0/850 Matter 270/300 Energy 77/290 System Corruption 3% Temperature Cool (18) Movement Walking (120) Location -6/Hub_04(d) Parts ------- > --- POWER (1) -------- Improved Deuterium Engine > --- PROPULSION (5) --- Carbon-fiber Leg Carbon-fiber Leg Flexi-carbon Leg Enhanced Flexi-carbon Leg > --- UTILITY (7) ------ Advanced Heat Sink Large Storage Unit Centrium Medium Armor Plating Experimental Thermal Shield Improved Hacking Suite Improved Hacking Suite Drone Bay (2/2) > --- WEAPON (2) ------- Heavy Laser Flak Gun > --- INVENTORY (15) --- High-capacity Matter Pod (200) Active Sensor Suite Weapon Cycler Gun Armor Improved System Shield Self-contained Transmogrifier Powered Hammer DRS Beacon (Ready) Peak State ------------ > --- POWER ------------ Quantum Reactor > --- PROPULSION ------- Centrium Heavy Treads Improved Titanium Leg Enhanced Flexi-carbon Leg Enhanced Flexi-carbon Leg > --- UTILITY ---------- Large Storage Unit Surveybot 17 Chip Advanced Targeting Computer Centrium Medium Armor Plating Improved Hacking Suite Scrapoid Pod > --- WEAPON ----------- Advanced Variable Charge Gun Advanced KE Penetrator > --- INVENTORY -------- Micro Fission Core Advanced Heat Sink High-capacity Matter Pod Gun Armor Experimental Thermal Shield Improved Hacking Suite Improved System Shield Improved System Shield Drone Bay Self-contained Transmogrifier KE Penetrator Advanced KE Penetrator Powered Hammer DRS Beacon [Rating: 106] Favorites ----------- Power Angular Momentum Engine Engine Angular Momentum Engine Power Core Micro Fission Core Reactor Quantum Reactor Propulsion Combat Airjet Treads Centrium Heavy Treads Leg Makeshift Leg Wheel Subdweller Monowheel Hover Unit Combat Airjet Flight Unit Cooled Cesium-ion Thruster Utility Large Storage Unit Device IFF Parser Storage Large Storage Unit Processor Surveybot 17 Chip Hackware Hacking Suite Protection Hardened Light Armor Plating Weapon Magnetic Acceleration Cannon Energy Gun Subdweller Laser Energy Cannon Advanced Beam Cannon Ballistic Gun Advanced KE Penetrator Ballistic Cannon Magnetic Acceleration Cannon Launcher Shock Bomb Launcher Special Weapon Remote Datajack Impact Weapon Heavy Mace Slashing Weapon Mining Claw Build | -11 -10 -10 -10 -8 -6 -6 -6 -6 -6 ------- Run | Yrd Mat Min Sub Scr Fac Ext Cet Arc Hub Slots Evolved 8 | . . . . . 8 . . . . Power . | . . . . . . . . . . Propulsion 3 | . . . . . 3 . . . . Utility 5 | . . . . . 5 . . . . Weapon . | . . . . . . . . . . Parts Attached 96 | 3 4 3 11 12 22 13 13 2 13 Power 8 | 1 . . 1 1 2 1 1 . 1 Engine 6 | 1 . . 1 1 2 . . . 1 Core 1 | . . . . . . 1 . . . Reactor 1 | . . . . . . . 1 . . Propulsion 33 | 2 . 1 4 8 7 5 3 . 3 Treads 1 | . . . . . . . 1 . . Leg 15 | . . . 2 4 1 3 2 . 3 Wheel 9 | 2 . 1 2 4 . . . . . Hover 7 | . . . . . 6 1 . . . Flight 1 | . . . . . . 1 . . . Utility 31 | . 2 1 1 1 9 5 5 2 5 Device 13 | . 1 . . 1 4 2 2 1 2 Storage 2 | . 1 . . . . . 1 . . Processor 4 | . . . . . 2 1 1 . . Hackware 6 | . . . . . 2 . . 1 3 Protection 6 | . . 1 1 . 1 2 1 . . Artifact . | . . . . . . . . . . Weapon 24 | . 2 1 5 2 4 2 4 . 4 Energy Gun 5 | . . . 2 . . . 2 . 1 Energy Cannon 4 | . 2 1 . . . . 1 . . Ballistic Gun 5 | . . . 1 . . . 1 . 3 Ballistic Cannon 5 | . . . 1 1 3 . . . . Launcher 1 | . . . . . . 1 . . . Special Weapon 1 | . . . . . 1 . . . . Impact Weapon 2 | . . . . 1 . 1 . . . Slashing Weapon 1 | . . . 1 . . . . . . Piercing Weapon . | . . . . . . . . . . Special Melee Weapon . | . . . . . . . . . . Unidentified Prototypes 12 | . 1 . . . 2 1 8 . . Parts Lost 29 | . . . 2 . 9 9 1 . 8 Power 5 | . . . 1 . 2 . . . 2 Propulsion 11 | . . . 1 . 2 4 1 . 3 Utility 8 | . . . . . 3 4 . . 1 Weapon 5 | . . . . . 2 1 . . 2 Highest Loss Streak 7 | . . . 1 . 7 4 1 . 2 To Critical Strikes . | . . . . . . . . . . Average Backups 12 | . 2 11 13 12 9 12 13 13 10 Power . | . . . . . . 1 1 1 . Propulsion 1 | . . 1 2 1 . 2 . . . Utility 6 | . 1 4 5 7 4 5 7 8 6 Weapon 2 | . . 4 4 1 1 1 2 2 2 Tool/Special . | . . . . . . . . . . Unused Backups 27 | . . 3 5 7 . 3 2 1 6 Power 3 | . . . 2 . . . 1 . . Propulsion 4 | . . 1 1 . . 2 . . . Utility 12 | . . 1 . 3 . 1 1 1 5 Weapon 6 | . . 1 2 3 . . . . . Tool/Special 2 | . . . . 1 . . . . 1 Average Slot Usage (%) 93 | . 82 100 98 93 91 92 92 85 87 Engine 9 | . 14 14 14 13 4 . . . . Leg 15 | . . . 19 18 9 6 20 20 18 Wheel 6 | . 28 28 7 9 . . . . . Hover 5 | . . . . . 20 23 5 . . Device 7 | . 10 12 . 8 17 10 5 8 10 Storage 11 | . 5 14 14 13 6 6 6 6 6 Processor 5 | . . . . . 12 13 22 15 5 Hackware 2 | . . . . . 5 6 6 7 16 Protection 5 | . . 1 14 5 . 5 . . 4 Energy Gun 3 | . . . 2 6 . . 5 6 6 Energy Cannon 2 | . 23 28 2 . . . 2 . . Ballistic Gun 1 | . . . 6 . . . 2 5 5 Ballistic Cannon 7 | . . . 13 8 7 6 . . . Impact Weapon 3 | . . . . 8 2 1 . . . Peak Build Rating 106 | 3 12 15 24 34 78 79 99 106 106 Average Rating 42 | 2 10 14 19 25 65 68 86 100 94 On Entrance 43 | . 3 12 14 19 34 78 70 99 106 Avg Prop Armor Cover (%) 9 | . . . 7 10 4 4 11 12 12 Naked Turns . | . . . . . . . . . . Heaviest Build 66 | 5 35 38 40 45 61 52 62 66 66 Greatest Support 111 | 20 20 20 40 35 60 60 111 80 80 Greatest Overweight (x) 3 | . 1 1 3 3 1 2 . . 1 Average Overweight (x) . | . . 1 . 1 . . . . . Largest Inventory Capacity 15 | 5 15 15 15 15 15 15 15 15 15 Average Capacity 14 | 5 9 15 15 14 15 15 15 15 15 Most Carried 15 | . 3 15 15 15 15 15 15 15 15 Average Carried 14 | . 2 12 14 14 11 14 14 14 12 Final Capacity 15 | 5 15 15 15 15 15 15 15 15 15 Final Carried 15 | . 3 15 15 15 15 15 15 15 10 Class Distribution -------------------- 70% | Mutant 13% | Scavenger-Mutant 6% | Scout 3% | Skirmisher Dominant Class ---------------- Mutant | -10/Materials Mutant | -10/Mines Mutant | -10/Subcaves Mutant | -8/Scraptown Scout | -6/Factory Mutant | -6/Extension Scavenger-Mutant | -6/Cetus Scavenger-Mutant | -6/Archives Scavenger-Mutant | -6/Hub_04(d) Resources | -11 -10 -10 -10 -8 -6 -6 -6 -6 -6 ----------- Run | Yrd Mat Min Sub Scr Fac Ext Cet Arc Hub Matter Collected 4880 | 230 18 391 441 224 889 1188 1107 102 290 Remotely . | . . . . . . . . . . Salvage Created 3980 | . 18 298 292 . 881 825 165 398 1103 Parts 198 | . . 21 26 . 31 30 7 27 56 Haulers Intercepted 3 | . . . . . 1 2 . . . Recyclers Shooed 1 | . . . . . 1 . . . . Parts Field Recycled . | . . . . . . . . . . Retrieved Matter . | . . . . . . . . . . Parts Self-Destructed 10 | . . . 10 . . . . . . Prevented . | . . . . . . . . . . Parts Restored . | . . . . . . . . . . Kills | -11 -10 -10 -10 -8 -6 -6 -6 -6 -6 ------- Run | Yrd Mat Min Sub Scr Fac Ext Cet Arc Hub Combat Hostiles Destroyed 67 | . . 3 13 . 21 11 2 2 15 Melee 1 | . . . . . . 1 . . . Guns 18 | . . . 3 . . . 2 1 12 Cannons 38 | . . 3 8 . 19 7 . 1 . AOE 4 | . . . 1 . 1 2 . . . Classes Destroyed 17 | . 1 4 2 . 5 2 . 1 2 Worker 8 | . . 4 . . 3 . . . 1 Builder 2 | . . . . . 2 . . . . Tunneler 1 | . . 1 . . . . . . . Hauler 3 | . . . . . 1 2 . . . Recycler 6 | . . 1 . . 1 3 . . 1 Mechanic 1 | . . . . . 1 . . . . Operator 8 | . . . . . . . . 8 . Watcher 3 | . 1 . . . . 1 1 . . Swarmer 11 | . . . 3 . 3 5 . . . Grunt 28 | . . 3 . . 13 2 . . 10 Duelist 2 | . . . . . . 1 . . 1 Sentry 8 | . . . . . 3 2 . 2 1 Hunter 1 | . . . . . . . . . 1 Programmer 2 | . . . . . 2 . . . . Heavy 2 | . . . . . . . . . 2 Cetus Guard 2 | . . . . . . . 2 . . Subdweller 10 | . . . 10 . . . . . . Savage 1 | . . . . . . 1 . . . Best Kill Streak 6 | . 1 2 3 . 5 3 2 2 6 Combat Bots Only 6 | . . 1 3 . 4 3 1 2 6 Max Kills in Single Turn 4 | . 1 1 2 . 4 1 1 1 2 Gunslinging 1 | . . . . . . . . . 1 Exploded 1 | . . . 1 . 1 1 . . . Melee 1 | . . . . . . 1 . . . Uniques/NPCs Destroyed . | . . . . . . . . . . Combat | -11 -10 -10 -10 -8 -6 -6 -6 -6 -6 -------- Run | Yrd Mat Min Sub Scr Fac Ext Cet Arc Hub Hostile Shots Fired 560 | . . 15 42 . 146 155 31 11 160 Missed 154 | . . 4 10 . 46 55 10 3 26 Hits 406 | . . 11 32 . 100 100 21 8 134 Melee 12 | . . . . . . 7 . . 5 Projectile 394 | . . 11 32 . 100 93 21 8 129 AOE 4 | . . . . . . . . . 4 Critical Strikes 28 | . . . 2 . 4 4 11 . 7 Damage Taken 7305 | . . 161 709 . 1700 1639 589 195 2312 Core 1047 | . . 12 181 . 189 215 109 20 321 Absorbed by Shields 112 | . . . . . . 88 24 . . Reduced by Siege Mode 117 | . . . . . . . . . 117 Ignored by Resistances 424 | . . . . . . . . . 424 Regen/Repaired (Parts) 176 | . . . . . 176 . . . . Core Remaining (%) 61 | 100 . . . 22 . . . . . Volleys Fired 480 | . 5 22 33 . 116 93 43 91 77 Largest 2 | . 2 2 2 . 2 2 1 2 2 Hottest 275 | . 136 136 105 . 88 77 81 170 275 Shots Fired 580 | . 10 44 61 . 131 103 42 93 96 Gun 242 | . . . 26 . . . 31 89 96 Cannon 333 | . 10 44 35 . 131 98 11 4 . Launcher 5 | . . . . . . 5 . . . Special . | . . . . . . . . . . Kinetic 360 | . . . 57 . 131 98 34 6 34 Thermal 215 | . 10 44 4 . . . 8 87 62 Explosive . | . . . . . . . . . . Electromagnetic 5 | . . . . . . 5 . . . Robot Hit Streak 38 | . 1 9 19 . 21 9 16 7 38 Robot Miss Streak 5 | . 2 5 4 . 4 2 2 4 3 Penetration Max 1 | . . . . . . . . . 1 Secondary Targets 1 | . . . . . . . . . 1 Max Gunslinging Chain 1 | . . . . . . . . . 1 Shots Hit Robots 404 | . 2 25 51 . 102 70 28 55 71 Core Hits 230 | . 1 9 30 . 100 27 11 22 30 Critical Kills 4 | . . . 1 . . . . . 3 Critical Parts Destroyed 5 | . . . . . 2 . 2 1 . Critical Strikes 17 | . . . 1 . 4 1 3 1 7 Burn 5 | . . . . . . . 1 . 4 Meltdown 1 | . . . 1 . . . . . . Destroy 6 | . . . . . . . 2 1 3 Blast 3 | . . . . . 2 1 . . . Smash 2 | . . . . . 2 . . . . Melee Attacks 34 | . . . 19 . 9 6 . . . Impact 15 | . . . . . 9 6 . . . Slashing 19 | . . . 19 . . . . . . Piercing . | . . . . . . . . . . Sneak Attacks 4 | . . . . . 1 3 . . . Combat Hostiles . | . . . . . . . . . . Follow-up Attacks . | . . . . . . . . . . Damage Inflicted 12845 | . 40 587 710 . 3532 3002 880 1760 2334 Guns 4937 | . . . 214 . . . 748 1641 2334 Cannons 6572 | . 40 534 496 . 2848 2403 132 119 . Explosions 792 | . . 53 . . 448 291 . . . Melee 544 | . . . . . 236 308 . . . Ramming . | . . . . . . . . . . Kinetic 7554 | . . . 647 . 2848 2403 697 148 811 Thermal 4480 | . 40 587 63 . 448 24 183 1612 1523 Explosive . | . . . . . . . . . . Electromagnetic 267 | . . . . . . 267 . . . Impact 544 | . . . . . 236 308 . . . Slashing . | . . . . . . . . . . Piercing . | . . . . . . . . . . Highest Corruption 5 | . . . . . . 5 5 5 3 Average Corruption 4 | . . . . . . 5 5 4 2 Corruption Purged 5 | . . . . . . . . 5 . Corruption Blocked . | . . . . . . . . . . Effects 58 | . . . . . . 23 16 14 5 Message Errors 14 | . . . . . . 6 5 3 . Matter Fused 16 | . . . . . . 6 5 3 2 Heat Flow Errors 7 | . . . . . . 4 1 2 . Energy Discharges 7 | . . . . . . 4 1 2 . Parts Rejected 2 | . . . . . . . 1 1 . Data Loss (minor) 5 | . . . . . . 1 2 1 1 Misfires 1 | . . . . . . . . 1 . Alerts 1 | . . . . . . . . . 1 Weapon Failures 5 | . . . . . . 2 1 1 1 Overload Shots 10 | . . . . . . . . . 10 Overflow Damage 350 | . . 12 . . 247 91 . . . Projectiles 90 | . . 12 . . 22 56 . . . Explosions 73 | . . . . . 73 . . . . Melee 187 | . . . . . 152 35 . . . Knockbacks 95 | . . . 13 . 65 16 1 . . Impact 3 | . . . . . 3 . . . . Kinetic 85 | . . . 13 . 55 16 1 . . Secondary 7 | . . . . . 7 . . . . Self-Inflicted Damage 45 | . . . . . 33 12 . . . Shots 2 | . . . . . 1 1 . . . Rammed . | . . . . . . . . . . Targets Rammed . | . . . . . . . . . . Kicked . | . . . . . . . . . . Crushed . | . . . . . . . . . . Highest Temperature 689 | . 18 387 12 . 297 352 162 342 689 Average Temperature 118 | . 7 70 6 . 101 165 87 100 184 Received Heat Transfer 2434 | . . 87 57 . 702 751 . 18 819 Effects 15 | . . 1 . . 1 . . 3 10 Shutdowns 3 | . . . . . . . . . 3 Energy Bleed 4 | . . . . . 1 . . 1 2 Interference 2 | . . . . . . . . 2 . Short Circuit 3 | . . . . . . . . . 3 Damage (minor) 1 | . . 1 . . . . . . . Damage (core) 2 | . . . . . . . . . 2 Siege Activations 2 | . . . . . . . . 1 1 Total Turns 130 | . . . . . . . . 16 114 Longest Duration 114 | . . . . . . . . 16 114 Martial Activations . | . . . . . . . . . . Shielding Activations . | . . . . . . . . . . Robots Disrupted . | . . . . . . . . . . Combat Hostiles . | . . . . . . . . . . Robots Corrupted 3 | . . . . . 2 1 . . . Combat Hostiles 2 | . . . . . 1 1 . . . Parts Fried 3 | . . . . . . 3 . . . Impact Corruptions 7 | . . . . . 6 1 . . . Robots Melted 4 | . . . 1 . . . . . 3 Combat Hostiles 4 | . . . 1 . . . . . 3 Parts Melted 11 | . . . 2 . . . 1 2 6 Heat Transferred 6041 | . 74 1012 111 . 350 50 370 1850 2224 Parts Sabotaged . | . . . . . . . . . . Parts Stolen . | . . . . . . . . . . Parts Stripped . | . . . . . . . . . . Power Chain Reactions . | . . . . . . . . . . Alert | -11 -10 -10 -10 -8 -6 -6 -6 -6 -6 ------- Run | Yrd Mat Min Sub Scr Fac Ext Cet Arc Hub Maximum Alert Level 2 | . . . . . 1 1 1 . 2 Low Security (%) 87 | 100 100 100 . . 94 91 93 100 18 Level 1 8 | . . . . . 5 8 6 . 40 Level 2 3 | . . . . . . . . . 41 Level 3 . | . . . . . . . . . . Level 4 . | . . . . . . . . . . Level 5 . | . . . . . . . . . . High Security . | . . . . . . . . . . Max Security . | . . . . . . . . . . Peak Influence 584 | . 7 66 . . 286 382 216 142 584 Initial 213 | . . . . . . 19 213 . . Average 79 | . . 13 . . 55 56 79 54 338 Influence Increases 3173 | . 7 126 70 . 704 821 265 230 950 Destroy 0b10 Robot/C 1680 | . . 60 60 . 420 440 160 80 460 Destroy 0b10 Robot/NC 185 | . 5 30 . . 40 30 10 40 30 Destroy Leader 278 | . 2 10 10 . 92 52 . . 112 Allied During Kill 525 | . . . . . . 193 74 54 204 Successful Hack 47 | . . . . . 14 19 8 . 6 Disable Machine 270 | . . 15 . . 90 60 . 45 60 Destroy Structure 158 | . . 11 . . 48 27 13 11 48 Lose Combat Pursuer 30 | . . . . . . . . . 30 Influence Decreases 2643 | . 7 126 50 20 663 480 647 230 420 Entered New Map 211 | . . . . 20 . 22 169 . . Time Decay 1383 | . 7 126 50 . 295 247 228 230 200 Lost Part 231 | . . . . . 90 51 10 . 80 Lost Ally 390 | . . . . . . 10 240 . 140 Purge Threat 428 | . . . . . 278 150 . . . Squads Dispatched 22 | . 2 1 . . 8 3 . . 8 Investigation 6 | . 2 1 . . 3 . . . . Extermination 2 | . . . . . 2 . . . . Reinforcement 12 | . . . . . 3 3 . . 6 Assault . | . . . . . . . . . . Garrison 2 | . . . . . . . . . 2 Intercept . | . . . . . . . . . . Searches Triggered . | . . . . . . . . . . Construction Impeded 3 | . . . . . 1 1 . . 1 Haulers Reinforced 3 | . . . . . 2 . . . 1 Active Scanning Responses . | . . . . . . . . . . Cargo Convoy Interrupts . | . . . . . . . . . . Stealth | -11 -10 -10 -10 -8 -6 -6 -6 -6 -6 --------- Run | Yrd Mat Min Sub Scr Fac Ext Cet Arc Hub Distress Signals 10 | . . . . . 5 3 2 . . Communications Jammed . | . . . . . . . . . . Distress Signals . | . . . . . . . . . . Times Spotted 178 | . 3 4 16 . 39 27 11 48 30 Peak Tracking Total 7 | . 2 2 2 . 6 4 5 2 7 Tactical Retreats 2 | . . . . . . . . . 2 Traps | -11 -10 -10 -10 -8 -6 -6 -6 -6 -6 ------- Run | Yrd Mat Min Sub Scr Fac Ext Cet Arc Hub Traps Triggered 10 | . 2 . 3 . . 3 . . 2 Indirectly . | . . . . . . . . . . Trap Hack Attempts . | . . . . . . . . . . Triggered . | . . . . . . . . . . Disarmed . | . . . . . . . . . . Reprogrammed . | . . . . . . . . . . Reused 4 | . . . 4 . . . . . . Traps Extracted . | . . . . . . . . . . Installed 5 | . . 1 4 . . . . . . Triggered . | . . . . . . . . . . Most Traps Carried 4 | . . 4 4 . . . . . . Machines | -11 -10 -10 -10 -8 -6 -6 -6 -6 -6 ---------- Run | Yrd Mat Min Sub Scr Fac Ext Cet Arc Hub Machines Disabled 21 | . . 1 1 . 6 6 . 3 4 Max in Single Turn 4 | . . 1 1 . 4 1 . 1 . Garrison Access 2 | . . . . . 1 . . . 1 Energy Cycler 1 | . . . . . . 1 . . . Machines Repaired . | . . . . . . . . . . Machines Dismantled . | . . . . . . . . . . Machines Sabotaged . | . . . . . . . . . . Overloaded Fab Kills . | . . . . . . . . . . Hacking | -11 -10 -10 -10 -8 -6 -6 -6 -6 -6 --------- Run | Yrd Mat Min Sub Scr Fac Ext Cet Arc Hub Machines Accessed 40 | . . 1 2 11 15 6 1 . 4 Terminals 19 | . . . . . 9 6 1 . 3 Fabricators . | . . . . . . . . . . Repair Stations 1 | . . . . . 1 . . . . Recycling Units 2 | . . . . . 2 . . . . Scanalyzers 1 | . . . . . 1 . . . . Garrison Access 3 | . . . . . 2 . . . 1 Total Hacks 163 | . . 1 12 84 35 16 1 . 14 Successful 125 | . . 1 12 84 16 6 1 . 5 Failed 38 | . . . . . 19 10 . . 9 Catastrophic 6 | . . . . . 2 2 . . 2 Database Lockouts . | . . . . . . . . . . Manual 38 | . . . . . 18 8 1 . 11 Terminals 53 | . . . . . 24 16 1 . 12 Fabricators . | . . . . . . . . . . Repair Stations 2 | . . . . . 2 . . . . Recycling Units 3 | . . . . . 3 . . . . Scanalyzers 1 | . . . . . 1 . . . . Garrison Access 7 | . . . . . 5 . . . 2 Terminal Hacks 109 | . . 1 12 84 4 4 1 . 3 Record 88 | . . . 11 77 . . . . . Robot Analysis 7 | . . . . 7 . . . . . Prototype ID Bank 1 | . . . . . . 1 . . . Open Door 4 | . . 1 . . 1 1 1 . . Terminal Index 1 | . . . . . . . . . 1 Unreport Threat 3 | . . . . . 2 1 . . . Locate Traps 1 | . . . . . . . . . 1 Recall Investigation 2 | . . . . . 1 1 . . . Recall Reinforcements 1 | . . . . . . . . . 1 Proto ID Catalog 1 | . . . 1 . . . . . . Fabricator Hacks . | . . . . . . . . . . Repair Station Hacks 2 | . . . . . 2 . . . . Scan Component 1 | . . . . . 1 . . . . Repair 1 | . . . . . 1 . . . . Recycling Unit Hacks 1 | . . . . . 1 . . . . Retrieve Components 1 | . . . . . 1 . . . . Scanalyzer 1 | . . . . . 1 . . . . Retrieve Study 1 | . . . . . 1 . . . . Garrison Access Hacks 2 | . . . . . 1 . . . 1 Seal Access 2 | . . . . . 1 . . . 1 Unauthorized Hacks 10 | . . . . . 7 2 . . 1 Terminals 8 | . . . . . 5 2 . . 1 Assimilate 1 | . . . . . 1 . . . . Botnet 6 | . . . . . 3 2 . . 1 Operators 1 | . . . . . 1 . . . . Fabricators . | . . . . . . . . . . Repair Stations . | . . . . . . . . . . Recycling Units 2 | . . . . . 2 . . . . Fedlink 2 | . . . . . 2 . . . . Scanalyzers . | . . . . . . . . . . Garrison Access . | . . . . . . . . . . Data Cores Recovered . | . . . . . . . . . . Used . | . . . . . . . . . . Hacking Detections 19 | . . . . . 11 5 . . 3 Full Trace Events 1 | . . . . . 1 . . . . Feedback Events . | . . . . . . . . . . Feedback Blocked . | . . . . . . . . . . Robot Schematics Acquired . | . . . . . . . . . . Robots Built . | . . . . . . . . . . Authchips . | . . . . . . . . . . Time . | . . . . . . . . . . Total Robot Build Rating . | . . . . . . . . . . Part Schematics Acquired . | . . . . . . . . . . Parts Built . | . . . . . . . . . . Authchips . | . . . . . . . . . . Time . | . . . . . . . . . . Total Part Build Rating . | . . . . . . . . . . Part Studies Acquired 1 | . . . . . 1 . . . . Parts Repaired 1 | . . . . . 1 . . . . Time 50 | . . . . . 50 . . . . Parts Recycled . | . . . . . . . . . . Recycled Matter . | . . . . . . . . . . Retrieved Matter . | . . . . . . . . . . Retrieved Components 2 | . . . . . 2 . . . . Parts Scanalyzed . | . . . . . . . . . . Part Schematics Acquired . | . . . . . . . . . . Parts Damaged . | . . . . . . . . . . Bothacking | -11 -10 -10 -10 -8 -6 -6 -6 -6 -6 ------------ Run | Yrd Mat Min Sub Scr Fac Ext Cet Arc Hub Used RIF Installer . | . . . . . . . . . . Robots Hacked . | . . . . . . . . . . Non-combat . | . . . . . . . . . . Combat . | . . . . . . . . . . Robot Hacks Applied . | . . . . . . . . . . Relay Couplers Released . | . . . . . . . . . . Fabnet Peak Effective % . | . . . . . . . . . . Robots Rewired 11 | . . . . . . 11 . . . Allies Hacked . | . . . . . . . . . . Hacks Repelled . | . . . . . . . . . . Allies | -11 -10 -10 -10 -8 -6 -6 -6 -6 -6 -------- Run | Yrd Mat Min Sub Scr Fac Ext Cet Arc Hub Total Allies 24 | . . . . . 1 13 5 . 5 Largest Group 12 | . . . . . 1 12 12 2 7 Highest-Rated Group 502 | . . . . . 10 466 502 192 430 Highest-Rated Ally 159 | . . . . . 10 159 159 96 96 Initial UFD Resources 38 | . . . . . 24 38 38 38 38 Total Orders 6 | . . . . . . 2 2 2 . STAY 3 | . . . . . . 1 1 1 . ROAM 1 | . . . . . . . 1 . . FOLLOW 2 | . . . . . . 1 . 1 . Ally Attacks 193 | . . . . . . 41 44 21 87 Total Damage 4845 | . . . . . . 806 974 830 2235 Kills 35 | . . . . . . 11 10 2 12 Allies Corrupted . | . . . . . . . . . . Allies Melted 2 | . . . 1 . . . . . 1 Intel | -11 -10 -10 -10 -8 -6 -6 -6 -6 -6 ------- Run | Yrd Mat Min Sub Scr Fac Ext Cet Arc Hub Active Infowar (turns) 4362 | . . . . 2803 790 769 . . . Sensors 1357 | . . . . . 750 607 . . . IFF 2968 | . . . . 2803 165 . . . . Terrain 1436 | . . . . . 692 744 . . . Cloaking 1 | . . . . . 1 . . . . ECM 20 | . . . . . 2 18 . . . Robot Analysis Total 7 | . . . . 7 . . . . . Derelict Logs Recovered 9 | . . 3 1 5 . . . . . Drone Launches 2 | . . . . . . . . . 2 Drone Recoveries 2 | . . . . . . . . . 2 Exploration | -11 -10 -10 -10 -8 -6 -6 -6 -6 -6 ------------- Run | Yrd Mat Min Sub Scr Fac Ext Cet Arc Hub Turns Passed 11458 | 30 109 507 2242 4543 1039 1362 623 558 445 Spaces Moved 7258 | 35 98 420 1546 2874 600 916 382 214 173 Core 143 | 6 . . . 137 . . . . . Treads 112 | . . . . . . . . 98 14 Legs 3405 | . . . 840 1512 190 206 382 116 159 Wheels 2478 | 29 98 420 706 1225 . . . . . Hover 1120 | . . . . . 410 710 . . . Flight . | . . . . . . . . . . Fastest Speed 50 | 50 80 95 95 50 61 63 120 123 120 Average Speed 129 | 74 87 95 128 155 86 98 124 139 125 Slowest Speed 260 | 80 95 95 210 260 190 260 126 160 190 Overloaded Moves . | . . . . . . . . . . Propulsion Burnouts . | . . . . . . . . . . Robots Hopped . | . . . . . . . . . . Potential Cave-ins . | . . . . . . . . . . Cave-ins Triggered . | . . . . . . . . . . Exploration Rate (%) 52 | 3 20 66 79 94 18 69 75 77 27 Regions Visited 9 Branch Regions 7 Pre-discovered Areas 9 | . . 2 . 6 1 . . . . Known Exits Taken 4 | . . . . . 1 1 1 1 . Unknown Exits Taken 5 | 1 1 1 1 1 . . . . . Scrap Searched 15 | . . 1 5 9 . . . . . Spaces Dug 34 | . . . . . 21 . 7 2 4 Terrain Destroyed 124 | . . 11 . . 51 25 9 12 16 Melee 4 | . . . . . 4 . . . . Projectile 77 | . . . . . 22 18 9 12 16 AOE 43 | . . 11 . . 25 7 . . . Terrain Rammed . | . . . . . . . . . . Walls Destroyed . | . . . . . . . . . . Machines Disabled . | . . . . . . . . . . Actions | -11 -10 -10 -10 -8 -6 -6 -6 -6 -6 --------- Run | Yrd Mat Min Sub Scr Fac Ext Cet Arc Hub Total 8689 | 37 109 483 1705 2959 968 1259 490 379 300 Wait 509 | . . 14 49 . 187 137 32 60 30 Move 7249 | 34 97 419 1545 2873 599 915 381 213 173 Hop . | . . . . . . . . . . Pick Up 98 | . 3 17 15 28 16 8 5 4 2 Fast Attach 55 | 3 4 . 5 13 8 5 8 3 6 Attach 38 | . . . 4 5 16 6 1 1 5 Detach 7 | . . . . 1 2 1 3 . . Swap 40 | . . 5 11 . 9 5 4 1 5 Drop 95 | . . 5 20 38 6 5 13 6 2 Fire 480 | . 5 22 33 . 116 93 43 91 77 Melee 34 | . . . 19 . 9 6 . . . Ram . | . . . . . . . . . . Kick . | . . . . . . . . . . Crush . | . . . . . . . . . . Escape Stasis 15 | . . . . . . 15 . . . Rewire 64 | . . . . 1 . 63 . . . Trap 5 | . . 1 4 . . . . . . Miscellaneous . | . . . . . . . . . . Route ------- -11/Scrapyard -10/Materials -10/Mines (discovered 3 exits: [*Mat x2] / *Sub) -10/Subcaves (discovered 3 exits: [*Mat x2] / *Scr) -8/Scraptown (discovered 2 exits: *Fac x2) -6/Factory (discovered 6 exits: Fac x3 / Low x2 / *Ext) -6/Extension (discovered 3 exits: *Fac x2 / *Cet) -6/Cetus (discovered 2 exits: *Fac / *Arc) -6/Archives (discovered 2 exits: *Fac / *Hub) -6/Hub_04(d) (discovered 2 exits: *Fac x2) History --------- Turn | Location | Event 3 | -11/Scrapyard | Discovered new exit (range 15) 31 | -11/Scrapyard | Entered Materials 124 | -10/Materials | Discovered new exit (range 16) 140 | -10/Materials | Entered Mines 155 | -10/Mines | Discovered new exit (range 5) 164 | -10/Mines | Met a Derelict shopkeep closing up shop 269 | -10/Mines | Learned location of 1 exit from Materials 304 | -10/Mines | Build established: Mutant 370 | -10/Mines | Discovered new exit (range 3) 409 | -10/Mines | Learned location of Zion (-7) 472 | -10/Mines | Found a Scrap Suit stashed away for nefarious purposes 489 | -10/Mines | Discovered new exit (range 6) 562 | -10/Mines | Found a hidden stash of uninstalled traps 647 | -10/Mines | Entered Subcaves 648 | -10/Subcaves | Approached by a straggling Scientist 729 | -10/Subcaves | Scientist uncovered a shortcut to Scraptown 780 | -10/Subcaves | Discovered new exit (range 8) 826 | -10/Subcaves | A swath of the cavern ceiling suddenly collapsed 872 | -10/Subcaves | Discovered new exit (range 7) 923 | -10/Subcaves | Disturbed a concealed Subdweller 952 | -10/Subcaves | Core integrity fell below 50% 1335 | -10/Subcaves | Shifting Twisted Machinery released Sub. Power Source 1343 | -10/Subcaves | Shifting Twisted Machinery released Hvy. Riot Gun 1539 | -10/Subcaves | Visited 4L-MR0's lab 1553 | -10/Subcaves | Found Prototype Device 1557 | -10/Subcaves | Found Gun Armor 1614 | -10/Subcaves | Visited Clippyterm 1618 | -10/Subcaves | Learned Factory trap positions 2046 | -10/Subcaves | Shifting Twisted Machinery released Sub. Beam Cannon 2048 | -10/Subcaves | Shifting Twisted Machinery released Battle Rifle 2766 | -10/Subcaves | Shifting Twisted Machinery released Sub. Power Source 2889 | -10/Subcaves | Entered Scraptown 3025 | -8/Scraptown | Visited UFD Registry 3025 | -8/Scraptown | Registered with UFD as "Cryotorch" 3045 | -8/Scraptown | Visited Cyclists 3065 | -8/Scraptown | Entered Cyclist Reading Room 3089 | -8/Scraptown | Visited Comm Corps 3180 | -8/Scraptown | Discovered new exit (range 11) 3218 | -8/Scraptown | Guru changed UFD alias to "Phasecutter" 3281 | -8/Scraptown | Heard Great Nut preacher, LISTEN AND RECITE! 3458 | -8/Scraptown | Visited TADAMA 3492 | -8/Scraptown | Visited Bundlers 3521 | -8/Scraptown | Visited The Evicted 3565 | -8/Scraptown | Visited Shadow of the Wyrm 4055 | -8/Scraptown | Visited SPCMW 4134 | -8/Scraptown | Scanned Subdweller tech in exchange for log data 4141 | -8/Scraptown | Learned location of 1 exit from Factory 4143 | -8/Scraptown | Learned location of Armory (-4) 4145 | -8/Scraptown | Learned Research emergency access door positions 5031 | -8/Scraptown | Visited Derelict Rescue Squad 5052 | -8/Scraptown | Found DRS Beacon 5078 | -8/Scraptown | Visited Abandonware Association 5117 | -8/Scraptown | Visited DA-N13 Charitable Foundation 5124 | -8/Scraptown | Found DCF Scrap (30 items) 5197 | -8/Scraptown | Visited Infowarlord's Domain 5212 | -8/Scraptown | Visited Analyses Database 5373 | -8/Scraptown | Visited Junk Repository 5654 | -8/Scraptown | Delivered Scrap Shield to a Scientist 5792 | -8/Scraptown | Visited Scrapoid Research Area 5915 | -8/Scraptown | Discovered new exit (range 4) 6113 | -8/Scraptown | Visited Cartography Club 6147 | -8/Scraptown | Found Surveybot 17 Chip 6631 | -8/Scraptown | Learned location of Storage (-8) 6631 | -8/Scraptown | Learned location of Proximity Caves (-4) 6631 | -8/Scraptown | Learned location of Archives (-6) 6631 | -8/Scraptown | Learned 20 Factory zone layouts 6631 | -8/Scraptown | Learned 24 Factory zone layouts 6631 | -8/Scraptown | Learned 12 Research zone layouts 6631 | -8/Scraptown | Learned 8 Upper Caves zone layouts 6631 | -8/Scraptown | Learned 12 Upper Caves zone layouts 6631 | -8/Scraptown | Learned location of 2 exits from Research 6631 | -8/Scraptown | Learned location of 3 exits from Lower Caves 6810 | -8/Scraptown | Found Exp. Terrain Scanner 6891 | -8/Scraptown | Visited Scrapoid Pod Storage 6917 | -8/Scraptown | Visited Scrap Suit Storage 7087 | -8/Scraptown | Learned abandonware demo "HACKBUD.EXE" 7195 | -8/Scraptown | Found Scrapoid Pod 7286 | -8/Scraptown | Met Optimus 7286 | -8/Scraptown | Accepted into 0bPrime 7432 | -8/Scraptown | Entered Factory 7432 | -6/Factory | Evolved 8 slots: Propulsion x3, Utility x5 7433 | -6/Factory | Identified exit to Factory 7433 | -6/Factory | Identified exit to Lower Caves 7436 | -6/Factory | Loaded intel: 108 trap records 7583 | -6/Factory | Loaded intel: 8 recycling unit locations 7770 | -6/Factory | Learned location of Protoforge (-2) 7951 | -6/Factory | Lost 7 parts (1p2n2u2w) 8120 | -6/Factory | Repaired Magnetic Acceleration Cannon 8215 | -6/Factory | Build established: Scout 8395 | -6/Factory | Discovered new exit (range 30) 8471 | -6/Factory | Identified exit to Extension 8471 | -6/Factory | Entered Extension 8471 | -6/Extension | Accompanied by 1 ally 8541 | -6/Extension | Warlord forces began an assault 8553 | -6/Extension | Discovered exit to Factory (range 30) 8646 | -6/Extension | Spotted B-75 Beast 8681 | -6/Extension | Lost 4 allies 8797 | -6/Extension | Spotted B-75 Beast 8853 | -6/Extension | Lost 9 allies 8876 | -6/Extension | Rescued a captive Derelict 9124 | -6/Extension | Disrupted transfer network 9245 | -6/Extension | Build established: Skirmisher 9335 | -6/Extension | Lost 3 parts (3u) 9375 | -6/Extension | Energy Cycler disabled 9375 | -6/Extension | Rescued a captive Derelict 9376 | -6/Extension | Rescued a captive Derelict 9379 | -6/Extension | Rescued a captive Derelict 9389 | -6/Extension | Rescued A7 9412 | -6/Extension | Lost 4 parts (3n1w) 9790 | -6/Extension | Discovered exit to Factory (range 10) 9791 | -6/Extension | Discovered new exit (range 6) 9826 | -6/Extension | Identified exit to Cetus 9833 | -6/Extension | Entered Cetus 9833 | -6/Cetus | Accompanied by 12 allies (A7) 9838 | -6/Cetus | Acquired a Cetus Manufacturing Module code from A7 9859 | -6/Cetus | Build established: Commander-Mutant 9872 | -6/Cetus | Spotted Cetus Guard 9872 | -6/Cetus | Spotted Cetus Guard 9874 | -6/Cetus | Spotted Cetus Guard 9878 | -6/Cetus | Spotted Cetus Guard 9888 | -6/Cetus | Allies destroyed Cetus Guard 9889 | -6/Cetus | Destroyed Cetus Guard 9890 | -6/Cetus | Allies destroyed Cetus Guard 9892 | -6/Cetus | Allies destroyed Cetus Guard 9919 | -6/Cetus | Lost 9 allies 9964 | -6/Cetus | Escorted A7 to Cetus Mainframe 9974 | -6/Cetus | Started Cetus Manufacturing Module 9999 | -6/Cetus | Manufactured an Enhanced Grunt 10018 | -6/Cetus | Discovered new exit (range 16) 10024 | -6/Cetus | Manufactured an Enhanced Grunt 10049 | -6/Cetus | Manufactured an Enhanced Grunt 10055 | -6/Cetus | Spotted Cetus Guard 10055 | -6/Cetus | Spotted Cetus Guard 10069 | -6/Cetus | Allies destroyed Cetus Guard 10071 | -6/Cetus | Spotted Cetus Guard 10074 | -6/Cetus | Manufactured an Enhanced Grunt 10077 | -6/Cetus | Spotted Cetus Guard 10099 | -6/Cetus | Manufactured an Enhanced Grunt 10100 | -6/Cetus | Core integrity fell below 50% 10100 | -6/Cetus | Destroyed Cetus Guard 10122 | -6/Cetus | Allies destroyed Cetus Guard 10126 | -6/Cetus | Lost 6 allies 10130 | -6/Cetus | Found Prototype Device 10130 | -6/Cetus | Identified Exp. Thermal Shield 10136 | -6/Cetus | Extracted ID and sensor layout for unrecognized location from A7's data core 10145 | -6/Cetus | Discovered exit to Factory (range 16) 10153 | -6/Cetus | Met Revision 17 10203 | -6/Cetus | Build established: Scavenger-Mutant 10448 | -6/Cetus | Identified exit to Archives 10456 | -6/Cetus | Entered Archives 10456 | -6/Archives | Accompanied by 2 allies 10596 | -6/Archives | Discovered new exit (range 16) 10628 | -6/Archives | Identified exit to Hub_04(d) 10789 | -6/Archives | Discovered exit to Factory (range 16) 11014 | -6/Archives | Entered Hub_04(d) 11014 | -6/Hub_04(d) | Accompanied by 2 allies 11035 | -6/Hub_04(d) | Scrapoid Pod released 06H06-D (x5) 11117 | -6/Hub_04(d) | Lost 3 allies 11167 | -6/Hub_04(d) | Discovered exit to Factory (range 13) 11183 | -6/Hub_04(d) | Discovered exit to Factory (range 6) 11223 | -6/Hub_04(d) | Found Active Sensor Suite 11289 | -6/Hub_04(d) | Lost 4 allies 11318 | -6/Hub_04(d) | Core integrity fell below 20% 11347 | -6/Hub_04(d) | Garrison activated, responded to threat 11459 | -6/Hub_04(d) | Destroyed by Y-54 Guardian with Flak Gun Last Messages --------------- 11401_ Ended siege mode. 11402_ Acquired 101 matter. 11403_ K-01 Serf collects debris. 11410_ Acquired Carbon-fiber Leg. 11411_ K-01 Serf collects debris. 11412_ Acquired 10 matter. 11414_ K-01 Serf collects debris. 11424_ K-01 Serf destroyed. 11426_ Centrium Heavy Treads destroyed. 11428_ Mic. Fission Core destroyed. 11430_ D-53 Grenadier destroyed. 11437_ The unstable cave ceiling collapses. 11437_ K-01 Serf collects debris. 11442_ System corrupted: Component data lost. 11444_ Acquired Imp. Deuterium Engine. 11447_ The unstable cave ceiling collapses. 11447_ Acquired Carbon-fiber Leg. 11448_ Dropped Broken KE Penetrator. 11451_ Acquired Flak Gun. 11453_ Dropped Broken Adv. KE Penetrator. Map ----- +----------------------------------------------------+ | ??????? / *% #??????????????????? | | ??????????????### ! %! " #??????????????????? | | ????????????????# ##### ###????????????????? | | ????????????????##+##???### ##"############?????? | | ???????????????? ??????# " # =! "T" ## #??? | | ?????????????? ???????### + %! " #??? | | ???????????? ""??????????#% #!!* %""##??? | | ???????????+ ???????????# # """ %=" ???? | | ???????????? ?????????????#!*##########""""" ????? | | ??????????????????????????#=%#???######?########?? | | ??????????????????????????#%=##### ###"# #?? | | ??????????????????????????#= ! !% #?? | | ?????????????????????????## < % % < #?? | | ?????????????????????????##/###/##*%= ##### #?? | | ?????????????????????????#=!! #########?## #### | | ?????????????????????????#[![ " #???# ! # #?# | | ???????????????######????#%"""" #???# + #?# | | ???????????????? ??#="""" #???# """" # #?# | | ????????????? """ """ !#[=="" #???? """??# #?# | | ???????????T" /#*% [% #?????"????# #?# | | ????????????? """ """!%#![![=[#??????????# #?# | | ??????????????? % #! *%= #?????????## ### | | ??????????????#/#####+##?# ! //#########?#" ### | | ????????# ##### ### ###! /!# #" !### | | ????????+ wwY # [ ; " " !!! " %!%# | | ????????# A @ !+ !!! " =%%! | | ???????????????#### # " " !! # ### | | ?????????????????# k #;###### # #?? | | ?????????????????# # ## #????# ## ##?? | | ?????????? # %# ###????#########??# #??? | | ?????????# ] """" # #?????????????????# +??? | | ???????????? """" #?????????????????# #??? | | ?????????????"""" # ###?????????????????# #??? | | ??????????????""" + ???????????????????# #??? | | ????????????? ?# T ???????????????????# #??? | | ????????????? ??# ##??????????????????# #??? | | ???????????? ??## ##???????????????????# ??? | | ???????????? ????# ????????????????????? ??? | | ????????????##?????# ?????????????????????####??? | | ???????????????????# ???????????????????????????? | | ???????????????????# ???????????????????????????? | | ????????????????????++???????????????????????????? | | ?????????????????????????????????????????????????? | | ?????????????????????????????????????????????????? | | ?????????????????????????????????????????????????? | | ?????????????????????????????????????????????????? | | ?????????????????????????????????????????????????? | | ?????????????????????????????????????????????????? | | ?????????????????????????????????????????????????? | | ?????????????????????????????????????????????????? | +----------------------------------------------------+ Best States ------------- Heat Dissipation 56 Energy Generation 25 Energy Capacity 850 Matter Stores 300 Matter Capacity 300 Sight Range 16 Robot Scan Range 15 Terrain Scan Range 30 Terrain Scan Density 1210 ECM Strength 2 Armor Coverage 450 Resistance: KI 20 Resistance: TH 30 Evasion (%) 55 Targeting Accuracy 16 Recoil Reduction 2 Offensive Hacking 24 Defensive Hacking 12 Item Schematics ----------------- None Robot Schematics ------------------ None Fabricated ------------ Nothing Repaired ---------- Magnetic Acceleration Cannon | 2% | -6/Factory Studied --------- Hvy. Flak Cannon | -6/Factory | Hacked Alien Tech Used ----------------- None Achievements -------------- Explosive Keycard Nice Directions, Buddy Challenges ------------ None Game ------ Seed InterceptDispersalCloak Manual? 1 Play Time 02:02:35 Cumulative 464.1 hours Start 2026.07.22 @ 22:33:22 End 2026.07.24 @ 21:32:42 Sessions 3 Manual Loads 0 Difficulty Rogue Special Mode None Game No. 236 Rogue 232 Adventurer 0 Explorer 4 Win Type - Total 25 Types 9/1/2/5/1/2/3/1/1/0 Lore% 68 Gallery% 71 Achievement% 52 Wizard Run 0 Options --------- Layout 1 ASCII 0 Keyboard 0 Movement Mouse Keybinds 0 Fullscreen 1 Font 24/Smallcaps Map View 50x35 Zoom Use 0% Tactical HUD 1 Map Filters NONE Filters NONE Steam 1 RUN: a1b68ec8-5bee-470f-a9f3-987bc7be3631